Cogmind - Beta 15 @@@ ROGUE MODE // 2025.06.28 @ 19:27:39 Player: Evie Result: Destroyed by G-34 Mercenary with Small Laser Performance ------------- Evolutions (1) 500 Regions Visited (2) 400 Robots Destroyed (24) 120 Value Destroyed (476) 476 Prototype IDs (0) 0 Alien Tech Used (0) 0 Bonus (0) 0 TOTAL SCORE: 1496 Bonus ------- None Cogmind --------- Core Integrity 0/400 Matter 216/300 Energy 100/100 System Corruption 0% Temperature Cool (6) Movement Core (200) Ox3 Location -9/Materials Parts ------- > --- POWER (1) -------- (None) > --- PROPULSION (4) --- (None) > --- UTILITY (2) ------ Medium Storage Unit Hacking Suite > --- WEAPON (2) ------- Flail > --- INVENTORY (10) --- Large Storage Unit Peak State ------------ > --- POWER ------------ Light Ion Engine > --- PROPULSION ------- Aluminum Leg Aluminum Leg Aluminum Leg Aluminum Leg > --- UTILITY ---------- Medium Storage Unit Structural Scanner > --- WEAPON ----------- Beam Rifle Particle Gun > --- INVENTORY -------- Ion Engine Ion Engine Large Storage Unit Hacking Suite Beam Rifle Beam Rifle Datajack Flail [Rating: 12] Favorites ----------- Power Ion Engine Engine Ion Engine Propulsion Aluminum Leg Leg Aluminum Leg Utility Medium Storage Unit Device Structural Scanner Storage Medium Storage Unit Hackware Hacking Suite Weapon Particle Gun Energy Gun Particle Gun Ballistic Gun Light Assault Rifle Impact Weapon Flail Special Melee Weapon Datajack Build | -11 -10 -9 ------- Run | Yrd Mat Mat Slots Evolved 2 | . . 2 Power . | . . . Propulsion 2 | . . 2 Utility . | . . . Weapon . | . . . Parts Attached 26 | 8 10 8 Power 4 | 1 1 2 Engine 4 | 1 1 2 Core . | . . . Reactor . | . . . Propulsion 6 | 2 1 3 Treads . | . . . Leg 6 | 2 1 3 Wheel . | . . . Hover . | . . . Flight . | . . . Utility 5 | 2 2 1 Device 2 | 1 1 . Storage 2 | 1 1 . Processor . | . . . Hackware 1 | . . 1 Protection . | . . . Artifact . | . . . Weapon 11 | 3 6 2 Energy Gun 6 | 2 2 2 Energy Cannon . | . . . Ballistic Gun 2 | 1 1 . Ballistic Cannon . | . . . Launcher . | . . . Special Weapon . | . . . Impact Weapon 1 | . 1 . Slashing Weapon . | . . . Piercing Weapon . | . . . Special Melee Weapon 2 | . 2 . Unidentified Prototypes . | . . . Parts Lost 16 | . 2 14 Power 3 | . . 3 Propulsion 6 | . 1 5 Utility 1 | . . 1 Weapon 6 | . 1 5 Highest Loss Streak 12 | . 2 12 To Critical Strikes . | . . . Average Backups 8 | 4 9 7 Power 2 | 2 2 1 Propulsion 1 | 1 2 . Utility 2 | . 2 1 Weapon 1 | 1 1 2 Tool/Special . | . . . Unused Backups 8 | . 7 1 Power 2 | . 2 . Propulsion 3 | . 3 . Utility 3 | . 2 1 Weapon . | . . . Tool/Special . | . . . Average Slot Usage (%) 95 | . 100 76 Engine 13 | . 14 8 Leg 28 | . 28 28 Device 13 | . 14 9 Storage 13 | . 14 11 Energy Gun 18 | . 18 17 Ballistic Gun 4 | . 5 . Special Melee Weapon 2 | . 3 . Peak Build Rating 12 | 9 10 12 Average Rating 8 | 5 8 9 On Entrance 6 | . 9 10 Naked Turns . | . . . Heaviest Build 22 | 15 22 21 Greatest Support 40 | 20 20 40 Greatest Overweight (x) 5 | . 1 5 Average Overweight (x) . | . . . Largest Inventory Capacity 10 | 8 10 10 Average Capacity 9 | 7 9 10 Most Carried 10 | 7 10 9 Average Carried 8 | 5 9 6 Final Capacity 10 | 8 10 10 Final Carried 10 | 6 10 1 Class Distribution -------------------- 91% | Mutant 8% | Scavenger-Mutant Dominant Class ---------------- Mutant | -10/Materials Scavenger-Mutant | -9/Materials Resources | -11 -10 -9 ----------- Run | Yrd Mat Mat Matter Collected 488 | 270 176 42 Remotely . | . . . Salvage Created 781 | 138 478 165 Parts 48 | 11 28 9 Haulers Intercepted 1 | . 1 . Recyclers Shooed 1 | . . 1 Parts Field Recycled . | . . . Retrieved Matter . | . . . Parts Self-Destructed . | . . . Prevented . | . . . Kills | -11 -10 -9 ------- Run | Yrd Mat Mat Combat Hostiles Destroyed 14 | . 11 3 Guns 11 | . 8 3 AOE 1 | . 1 . Classes Destroyed 10 | 2 6 2 Worker 1 | . 1 . Builder 1 | . . 1 Tunneler 3 | 3 . . Hauler 1 | . 1 . Recycler 1 | 1 . . Operator 2 | . 2 . Watcher 1 | . 1 . Swarmer 5 | . 5 . Grunt 8 | . 6 2 Sentry 1 | . . 1 Best Kill Streak 3 | 2 3 3 Combat Bots Only 3 | . 3 2 Max Kills in Single Turn 1 | 1 1 1 Gunslinging . | . . . Exploded 1 | . 1 . Melee . | . . . Uniques/NPCs Destroyed . | . . . Combat | -11 -10 -9 -------- Run | Yrd Mat Mat Hostile Shots Fired 200 | . 69 131 Missed 52 | . 18 34 Hits 148 | . 51 97 Projectile 148 | . 51 97 Critical Strikes 3 | . . 3 Damage Taken 1686 | . 522 1164 Core 468 | . 64 404 Absorbed by Shields . | . . . Core Remaining (%) 87 | 100 74 . Volleys Fired 85 | 15 52 18 Largest 2 | 2 2 2 Hottest 121 | 90 121 121 Shots Fired 164 | 28 104 32 Gun 164 | 28 104 32 Cannon . | . . . Launcher . | . . . Special . | . . . Kinetic 21 | . 21 . Thermal 106 | 13 61 32 Explosive . | . . . Electromagnetic 37 | 15 22 . Robot Hit Streak 11 | 4 11 5 Robot Miss Streak 5 | 3 5 2 Penetration Max . | . . . Secondary Targets 1 | . . 1 Max Gunslinging Chain 1 | . . 1 Shots Hit Robots 102 | 13 68 21 Core Hits 38 | 5 25 8 Critical Kills . | . . . Critical Parts Destroyed 1 | . 1 . Critical Strikes 5 | 1 3 1 Burn 4 | 1 2 1 Smash 1 | . 1 . Melee Attacks 14 | . 11 3 Impact 12 | . 9 3 Slashing . | . . . Piercing . | . . . Sneak Attacks . | . . . Combat Hostiles . | . . . Follow-up Attacks . | . . . Damage Inflicted 1618 | 246 1002 370 Guns 1228 | 190 735 303 Cannons . | . . . Explosions 105 | 56 49 . Melee 278 | . 215 63 Ramming 7 | . 3 4 Kinetic 90 | . 90 . Thermal 928 | 130 495 303 Explosive . | . . . Electromagnetic 315 | 116 199 . Impact 278 | . 215 63 Slashing . | . . . Piercing . | . . . Highest Corruption 3 | . 3 . Average Corruption 2 | . 2 . Corruption Purged . | . . . Corruption Blocked . | . . . Effects 5 | . 5 . Message Errors 1 | . 1 . Heat Flow Errors 2 | . 2 . Parts Fused 1 | . 1 . Data Loss (minor) 1 | . 1 . Overload Shots . | . . . Overflow Damage 70 | . 70 . Projectiles . | . . . Explosions . | . . . Melee 70 | . 70 . Knockbacks 3 | . 2 1 Impact 3 | . 2 1 Kinetic . | . . . Secondary . | . . . Self-Inflicted Damage 2 | . . 2 Shots . | . . . Rammed 3 | . . 3 Targets Rammed 5 | . 2 3 Kicked 2 | . 2 . Crushed . | . . . Highest Temperature 563 | 90 366 563 Average Temperature 137 | 39 115 259 Received Heat Transfer 879 | . 201 678 Effects 18 | . 1 17 Shutdowns 4 | . 1 3 Energy Bleed 3 | . . 3 Interference 4 | . . 4 Matter Decay 2 | . . 2 Short Circuit 1 | . . 1 Damage (minor) 2 | . . 2 Damage (major) 2 | . . 2 Siege Activations . | . . . Martial Activations . | . . . Shielding Activations . | . . . Robots Disrupted . | . . . Combat Hostiles . | . . . Robots Corrupted 2 | . 2 . Combat Hostiles 2 | . 2 . Parts Fried 1 | . 1 . Impact Corruptions 4 | . 4 . Robots Melted 1 | . 1 . Combat Hostiles . | . . . Parts Melted 6 | . 5 1 Heat Transferred 2716 | 396 1469 851 Parts Sabotaged . | . . . Parts Stolen . | . . . Parts Stripped . | . . . Power Chain Reactions 2 | 1 1 . Alert | -11 -10 -9 ------- Run | Yrd Mat Mat Maximum Alert Level . | . . . Low Security (%) 100 | 100 100 100 Level 1 . | . . . Level 2 . | . . . Level 3 . | . . . Level 4 . | . . . Level 5 . | . . . High Security . | . . . Max Security . | . . . Peak Influence 76 | 5 76 45 Initial 10 | . . 10 Average 15 | . 19 8 Influence Increases 418 | 20 313 85 Destroy 0b10 Robot/C 280 | . 220 60 Destroy 0b10 Robot/NC 50 | 20 25 5 Destroy Leader 74 | . 54 20 Successful Hack 11 | . 11 . Destroy Structure 3 | . 3 . Influence Decreases 418 | 20 287 111 Entered New Map 16 | . . 16 Time Decay 342 | 20 277 45 Lost Part 60 | . 10 50 Squads Dispatched 2 | . 1 1 Investigation . | . . . Extermination . | . . . Reinforcement 2 | . 1 1 Assault . | . . . Garrison . | . . . Intercept . | . . . Searches Triggered . | . . . Construction Impeded . | . . . Haulers Reinforced . | . . . Active Scanning Responses . | . . . Cargo Convoy Interrupts . | . . . Stealth | -11 -10 -9 --------- Run | Yrd Mat Mat Distress Signals 2 | . 1 1 Communications Jammed . | . . . Distress Signals . | . . . Times Spotted 26 | . 18 8 Peak Tracking Total 5 | . 5 5 Tactical Retreats . | . . . Traps | -11 -10 -9 ------- Run | Yrd Mat Mat Traps Triggered 2 | . 2 . Indirectly . | . . . Trap Hack Attempts 48 | . 48 . Triggered . | . . . Disarmed 1 | . 1 . Reprogrammed . | . . . Reused . | . . . Traps Extracted . | . . . Installed . | . . . Triggered . | . . . Machines | -11 -10 -9 ---------- Run | Yrd Mat Mat Machines Disabled . | . . . Max in Single Turn . | . . . Machines Repaired . | . . . Machines Dismantled . | . . . Machines Sabotaged . | . . . Overloaded Fab Kills . | . . . Hacking | -11 -10 -9 --------- Run | Yrd Mat Mat Machines Accessed 5 | . 5 . Terminals 4 | . 4 . Fabricators . | . . . Repair Stations . | . . . Recycling Units 1 | . 1 . Scanalyzers . | . . . Garrison Access . | . . . Total Hacks 14 | . 14 . Successful 8 | . 8 . Failed 6 | . 6 . Catastrophic 2 | . 2 . Database Lockouts . | . . . Manual 2 | . 2 . Terminals 11 | . 11 . Fabricators . | . . . Repair Stations . | . . . Recycling Units 3 | . 3 . Scanalyzers . | . . . Garrison Access . | . . . Terminal Hacks 6 | . 6 . Record 2 | . 2 . Robot Analysis 1 | . 1 . Transport Status 1 | . 1 . Investigation Status 1 | . 1 . Zone Layout 1 | . 1 . Fabricator Hacks . | . . . Repair Station Hacks . | . . . Recycling Unit Hacks 2 | . 2 . Report Inventory 1 | . 1 . Retrieve Components 1 | . 1 . Scanalyzer . | . . . Garrison Access Hacks . | . . . Unauthorized Hacks . | . . . Terminals . | . . . Fabricators . | . . . Repair Stations . | . . . Recycling Units . | . . . Scanalyzers . | . . . Garrison Access . | . . . Data Cores Recovered . | . . . Used . | . . . Hacking Detections 4 | . 4 . Full Trace Events . | . . . Feedback Events . | . . . Feedback Blocked . | . . . Robot Schematics Acquired . | . . . Robots Built . | . . . Authchips . | . . . Time . | . . . Total Robot Build Rating . | . . . Part Schematics Acquired . | . . . Parts Built . | . . . Authchips . | . . . Time . | . . . Total Part Build Rating . | . . . Parts Repaired . | . . . Time . | . . . Parts Recycled . | . . . Recycled Matter . | . . . Retrieved Matter . | . . . Retrieved Components 4 | . 4 . Parts Scanalyzed . | . . . Part Schematics Acquired . | . . . Parts Damaged . | . . . Bothacking | -11 -10 -9 ------------ Run | Yrd Mat Mat Used RIF Installer . | . . . Robots Hacked 1 | . 1 . Non-combat . | . . . Combat 1 | . 1 . Robot Hacks Applied 1 | . 1 . parse_system 1 | . 1 . Relay Couplers Released . | . . . Fabnet Peak Effective % . | . . . Robots Rewired . | . . . Allies Hacked . | . . . Hacks Repelled . | . . . Allies | -11 -10 -9 -------- Run | Yrd Mat Mat Total Allies . | . . . Largest Group . | . . . Highest-Rated Group . | . . . Highest-Rated Ally . | . . . Total Orders . | . . . Ally Attacks . | . . . Total Damage . | . . . Kills . | . . . Allies Corrupted . | . . . Allies Melted . | . . . Intel | -11 -10 -9 ------- Run | Yrd Mat Mat Active Infowar (turns) 1137 | 26 986 125 Terrain 171 | 26 145 . Structural 966 | . 841 125 Robot Analysis Total 1 | . 1 . Derelict Logs Recovered . | . . . Drone Launches . | . . . Drone Recoveries . | . . . Exploration | -11 -10 -9 ------------- Run | Yrd Mat Mat Turns Passed 1351 | 169 986 196 Spaces Moved 721 | 92 545 84 Core 15 | 7 . 8 Treads . | . . . Legs 706 | 85 545 76 Wheels . | . . . Hover . | . . . Flight . | . . . Fastest Speed 50 | 50 120 120 Average Speed 124 | 114 124 133 Slowest Speed 300 | 120 190 300 Overloaded Moves . | . . . Propulsion Burnouts . | . . . Robots Hopped . | . . . Potential Cave-ins . | . . . Cave-ins Triggered . | . . . Exploration Rate (%) 31 | 5 78 12 Regions Visited 2 Branch Regions . Pre-discovered Areas . | . . . Known Exits Taken . | . . . Unknown Exits Taken 2 | 1 1 . Scrap Searched . | . . . Spaces Dug . | . . . Terrain Destroyed 5 | 3 2 . Melee . | . . . Projectile . | . . . AOE 5 | 3 2 . Terrain Rammed . | . . . Walls Destroyed . | . . . Machines Disabled . | . . . Actions | -11 -10 -9 --------- Run | Yrd Mat Mat Total 995 | 127 740 128 Wait 41 | . 35 6 Move 719 | 91 544 84 Hop . | . . . Pick Up 33 | 13 19 1 Fast Attach 1 | . 1 . Attach 20 | 7 3 10 Detach . | . . . Swap 15 | 1 11 3 Drop 14 | . 14 . Fire 85 | 15 52 18 Melee 14 | . 11 3 Ram 3 | . . 3 Kick 2 | . 2 . Crush . | . . . Escape Stasis . | . . . Rewire . | . . . Trap 48 | . 48 . Miscellaneous . | . . . Route ------- -11/Scrapyard -10/Materials (discovered 3 exits: [*Mat x2] / [*Min]) -9/Materials History --------- Turn | Location | Event 3 | -11/Scrapyard | Discovered new exit (range 16) 170 | -11/Scrapyard | Entered Materials 336 | -10/Materials | Build established: Mutant 549 | -10/Materials | Discovered new exit (range 16) 957 | -10/Materials | Discovered new exit (range 13) 1098 | -10/Materials | Discovered new exit (range 16) 1156 | -10/Materials | Entered another Materials area 1156 | -9/Materials | Evolved 2 slots: Propulsion x2 1322 | -9/Materials | Core integrity fell below 50% 1341 | -9/Materials | Core integrity fell below 20% 1352 | -9/Materials | Destroyed by G-34 Mercenary with Small Laser Last Messages --------------- G-34 Mercenary destroyed. G-34 Mercenary suffers critical hit (Burn). Beam Rifle destroyed. Structural Scanner destroyed. R-06 Scavenger collects Sml. Laser. Acquired Aluminum Leg. G-47 Trooper knocked back. Aluminum Leg destroyed. Critical hit (Burn: +37). Acquired 42 matter. Datajack destroyed. Ion Engine destroyed. Slammed into G-47 Trooper. K-01 Serf collects debris. G-34 Mercenary destroyed. Slammed into G-47 Trooper. K-01 Serf collects debris. Slammed into G-47 Trooper. K-01 Serf collects debris. R-06 Scavenger collects Ion Engine. Map ----- +----------------------------------------------------+ | ?????????????????????## ???????? | | ?????????????????????## " ???????? | | ?????????????????????## ???????? | | ?????????????????????## ##############???????? | | ?????????????????????### ###############???????? | | ?????????????????????### ###???????????????????? | | ??????????????????????## ##????????????????????? | | ??????????????????????## ##????????????????????? | | ??????????????????????## ##????????????????????? | | ??????????????????????## ##????????????????????? | | ??????????????????????## ##????????????????????? | | ??????????????????????## ##????????????????????? | | ??????????????????????## ##????????????????????? | | ??????????????????????## ##????????????????????? | | ??????????????????????## ##????????????????????? | | ??????????????????????## ##????????????????????? | | ??????????????????????## ##????????????????????? | | ??????????????????????## ##????????????????????? | | ??????????????????????## ##????????????????????? | | ??????????????????????## ##????????????????????? | | ??????????????????????## ##????????????????????? | | ??????????????????????## ##????????????????????? | | ?????################### = ############### # ????? | | ?????###################!%g############### #"????? | | ?????## r #"????? | | ?????## k @ g # ????? | | ?????## % % w "T" # ????? | | ?????## ############## ##????? | | ?????## ############## ! ?????? | | ?????## ?????????????######### ????? | | ?????## ??????????????######### ! ????? | | ?????# ??????????????????????? """ ##????? | | ????? ????????????????????????? """ ## ????? | | ???? ?????????????????????????? " ## ????? | | ? ?????????????????????????? ##?????? | | ?#+##??????????????????????????? ##?????? | | ? ??????????????????????????? ##?????? | | ???????????????????????????????? ? ???????? | | ???????????????????????????????? ????????????? | | ???????????????????????????????? ????????????? | | ?????????????????????????????????" ??????????????? | | ?????????????????????????????????????????????????? | | ?????????????????????????????????????????????????? | | ?????????????????????????????????????????????????? | | ?????????????????????????????????????????????????? | | ?????????????????????????????????????????????????? | | ?????????????????????????????????????????????????? | | ?????????????????????????????????????????????????? | | ?????????????????????????????????????????????????? | | ?????????????????????????????????????????????????? | +----------------------------------------------------+ Best States ------------- Heat Dissipation 28 Energy Generation 10 Energy Capacity 250 Matter Stores 300 Matter Capacity 300 Sight Range 16 Terrain Scan Range 16 Terrain Scan Density 10 Evasion (%) 55 Offensive Hacking 10 Item Schematics ----------------- None Robot Schematics ------------------ None Fabricated ------------ Nothing Repaired ---------- Nothing Alien Tech Used ----------------- None Achievements -------------- It's Just You Challenges ------------ None Game ------ Seed HybridTerrorStorage Manual? 0 Play Time 00:32:48 Cumulative 2.8 hours Start 2025.06.28 @ 18:49:22 End 2025.06.28 @ 19:27:39 Sessions 1 Manual Loads 0 Difficulty Rogue Special Mode None Game No. 5 Rogue 5 Adventurer 0 Explorer 0 Win Type - Total 0 Types 0/0/0/0/0/0/0/0/0/0 Lore% 6 Gallery% 4 Achievement% 5 Wizard Run 0 Options --------- Layout 1 ASCII 0 Keyboard 0 Movement Mouse Keybinds 0 Fullscreen 1 Font 32/SmallcapsGlow Map View 50x35 Zoom Use 0% Tactical HUD 0 Map Filters NONE Filters NONE Steam 1 RUN: 3ec3149f-8e6b-4e28-98c8-190b58062a45